[Event "*** Titled Tuesday Blitz"]
[Site "Chess.com"]
[Date "2021.02.16"]
[Round "3"]
[White "Shahaliyev"]
[Black "EvgenyT"]
[Result "1-0"]
[WhiteElo "2679"]
[BlackElo "2926"]
[TimeControl "180+1"]
[EndTime "10:32:46 PST"]
[Termination "Shahaliyev won by resignation"]

1. Nf3 {[%clk 0:03:00.9]} 1... d5 {[%clk 0:02:59.1]} 2. c4 {[%clk 0:03:00.1]}
2... d4 {[%clk 0:02:58.7]} 3. d3 {[%clk 0:02:57.4]} 3... Nc6 {[%clk 0:02:58.4]}
4. g3 {[%clk 0:02:57.7]} 4... e5 {[%clk 0:02:58.1]} 5. Bg2 {[%clk 0:02:56.4]}
5... Bb4+ {[%clk 0:02:57.5]} 6. Bd2 {[%clk 0:02:55.1]} 6... a5 {[%clk
0:02:57.2]} 7. O-O {[%clk 0:02:53.6]} 7... Nf6 {[%clk 0:02:56.4]} 8. Na3 {[%clk
0:02:47.5]} 8... h6 {[%clk 0:02:46.4]} 9. Nb5 {[%clk 0:02:46.7]} 9... O-O {[%clk
0:02:45.7]} 10. a3 {[%clk 0:02:40.7]} 10... Bxd2 {[%clk 0:02:43.1]} 11. Qxd2
{[%clk 0:02:31.6]} 11... Re8 {[%clk 0:02:42.3]} 12. e3 {[%clk 0:02:09.8]} 12...
dxe3 {[%clk 0:02:25.4]} 13. Qxe3 {[%clk 0:02:10.7]} 13... Bf5 {[%clk 0:02:22.5]}
14. Rad1 {[%clk 0:02:07.2]} 14... Qd7 {[%clk 0:02:20.2]} 15. Rfe1 {[%clk
0:02:03.3]} 15... Rad8 {[%clk 0:02:13.7]} 16. Na7 {[%clk 0:01:29.6]} 16... Nxa7
{[%clk 0:01:55.3]} 17. Qxa7 {[%clk 0:01:30.5]} 17... e4 {[%clk 0:01:55.7]} 18.
Nh4 {[%clk 0:01:18.2]} 18... Bh7 {[%clk 0:01:43]} 19. Qxb7 {[%clk 0:01:12.7]}
19... g5 {[%clk 0:01:36.2]} 20. dxe4 {[%clk 0:00:51.8]} 20... Qxd1 {[%clk
0:01:34.8]} 21. Rxd1 {[%clk 0:00:52.7]} 21... Rxd1+ {[%clk 0:01:34.2]} 22. Bf1
{[%clk 0:00:53.6]} 22... Bxe4 {[%clk 0:01:15.6]} 23. Qb3 {[%clk 0:00:49.2]}
23... Rxf1+ {[%clk 0:00:51]} 24. Kxf1 {[%clk 0:00:47]} 24... gxh4 {[%clk
0:00:51.3]} 25. gxh4 {[%clk 0:00:36.7]} 25... c6 {[%clk 0:00:33.4]} 26. Qc3
{[%clk 0:00:35.2]} 26... Kg7 {[%clk 0:00:32]} 27. Qxa5 {[%clk 0:00:31.6]} 27...
Bd3+ {[%clk 0:00:25.1]} 28. Kg2 {[%clk 0:00:31.3]} 28... Bxc4 {[%clk 0:00:23.7]}
29. Qc3 {[%clk 0:00:26.1]} 29... Bd5+ {[%clk 0:00:22.7]} 30. f3 {[%clk
0:00:24.4]} 30... Kg6 {[%clk 0:00:18.4]} 31. Kf2 {[%clk 0:00:24.8]} 31... Nd7
{[%clk 0:00:14.1]} 32. a4 {[%clk 0:00:24.3]} 32... Ne5 {[%clk 0:00:13.9]} 33. b4
{[%clk 0:00:16.2]} 33... Nxf3 {[%clk 0:00:13.3]} 34. b5 {[%clk 0:00:15.3]} 34...
cxb5 {[%clk 0:00:12]} 35. axb5 {[%clk 0:00:15]} 35... Ne5 {[%clk 0:00:09.8]} 36.
Qd4 {[%clk 0:00:13.1]} 36... Bb7 {[%clk 0:00:05.7]} 37. Qb6+ {[%clk 0:00:12.9]}
37... Re6 {[%clk 0:00:05.1]} 38. Qxb7 {[%clk 0:00:13.3]} 38... Nc4 {[%clk
0:00:04.2]} 39. Qd5 {[%clk 0:00:12.2]} 39... Nb6 {[%clk 0:00:03.9]} 40. h5+
{[%clk 0:00:12.5]} 40... Kg7 {[%clk 0:00:04.1]} 41. Qd4+ {[%clk 0:00:12.6]}
41... Kg8 {[%clk 0:00:04.1]} 42. Kf3 {[%clk 0:00:13.2]} 42... Kf8 {[%clk
0:00:04.5]} 43. Kf4 {[%clk 0:00:13.7]} 43... Ke8 {[%clk 0:00:04.6]} 44. Kg4
{[%clk 0:00:14.2]} 44... Ke7 {[%clk 0:00:04.8]} 45. Qc5+ {[%clk 0:00:14.4]}
45... Ke8 {[%clk 0:00:05.1]} 46. Kf5 {[%clk 0:00:13.6]} 46... Kd7 {[%clk
0:00:04.6]} 47. Qd4+ {[%clk 0:00:13.9]} 47... Ke7 {[%clk 0:00:04.6]} 48. Qb4+
{[%clk 0:00:13.4]} 48... Ke8 {[%clk 0:00:04.8]} 49. Qd2 {[%clk 0:00:12.6]} 49...
Nd7 {[%clk 0:00:04.6]} 50. Qd5 {[%clk 0:00:11.5]} 50... Rf6+ {[%clk 0:00:04.4]}
51. Kg4 {[%clk 0:00:11.1]} 51... Re6 {[%clk 0:00:04.2]} 52. Qa8+ {[%clk
0:00:10.9]} 52... Ke7 {[%clk 0:00:04.5]} 53. Qa3+ {[%clk 0:00:11.5]} 53... Ke8
{[%clk 0:00:04.6]} 54. Kg3 {[%clk 0:00:10.7]} 54... Nb6 {[%clk 0:00:04.6]} 55.
Qf3 {[%clk 0:00:09.5]} 55... Nd7 {[%clk 0:00:04.4]} 56. Qd5 {[%clk 0:00:09.3]}
56... Ke7 {[%clk 0:00:04.3]} 57. Qd4 {[%clk 0:00:09]} 57... Nb6 {[%clk
0:00:04.2]} 58. h3 {[%clk 0:00:09.1]} 58... Nd7 {[%clk 0:00:04.2]} 59. Qh4+
{[%clk 0:00:09.4]} 59... Ke8 {[%clk 0:00:03.4]} 60. Qb4 {[%clk 0:00:09.9]} 60...
Nb6 {[%clk 0:00:03.4]} 61. Kg4 {[%clk 0:00:10.4]} 61... Nd7 {[%clk 0:00:04.3]}
62. Qf4 {[%clk 0:00:10.4]} 62... Nf6+ {[%clk 0:00:02.9]} 63. Kf3 {[%clk
0:00:09.5]} 63... Nd7 {[%clk 0:00:03.8]} 64. Qd4 {[%clk 0:00:08.5]} 64... Rf6+
{[%clk 0:00:03.7]} 65. Ke4 {[%clk 0:00:08.4]} 65... Re6+ {[%clk 0:00:04.6]} 66.
Kd3 {[%clk 0:00:08.5]} 66... Nb6 {[%clk 0:00:05.5]} 67. Kc3 {[%clk 0:00:08.9]}
67... Ke7 {[%clk 0:00:05.6]} 68. Kb4 {[%clk 0:00:09.3]} 68... Nd7 {[%clk
0:00:05.8]} 69. Ka5 {[%clk 0:00:09.5]} 69... Ke8 {[%clk 0:00:06]} 70. Qd5 {[%clk
0:00:08.6]} 70... Rf6 {[%clk 0:00:05.8]} 71. Qe4+ {[%clk 0:00:08.4]} 71... Re6
{[%clk 0:00:05.8]} 72. Qh7 {[%clk 0:00:08.7]} 72... Ke7 {[%clk 0:00:06]} 73. Qg8
{[%clk 0:00:09]} 73... Rf6 {[%clk 0:00:05.9]} 74. Qc8 {[%clk 0:00:09]} 74... Re6
{[%clk 0:00:06.1]} 75. Qc1 {[%clk 0:00:08.6]} 75... Rd6 {[%clk 0:00:06.1]} 76.
Qa3 {[%clk 0:00:09]} 76... Ke6 {[%clk 0:00:05.7]} 77. Qe3+ {[%clk 0:00:09.6]}
77... Kf6 {[%clk 0:00:05.8]} 78. Qxh6+ {[%clk 0:00:09.5]} 78... Ke5 {[%clk
0:00:06]} 79. Qe3+ {[%clk 0:00:10]} 79... Kd5 {[%clk 0:00:06.2]} 80. h6 {[%clk
0:00:10.3]} 1-0

[Event "*** Titled Tuesday Blitz"]
[Site "Chess.com"]
[Date "2021.02.16"]
[Round "3"]
[White "canary2016"]
[Black "zmeeed67"]
[Result "0-1"]
[WhiteElo "1976"]
[BlackElo "2307"]
[TimeControl "180+1"]
[EndTime "10:32:49 PST"]
[Termination "zmeeed67 won by checkmate"]

1. d4 {[%clk 0:03:00.9]} 1... Nc6 {[%clk 0:03:00.1]} 2. c4 {[%clk 0:02:59.3]}
2... e5 {[%clk 0:03:00]} 3. dxe5 {[%clk 0:02:55.1]} 3... Nxe5 {[%clk 0:02:59.8]}
4. e3 {[%clk 0:02:49.7]} 4... Ng6 {[%clk 0:02:54]} 5. Nf3 {[%clk 0:02:49.1]}
5... Bc5 {[%clk 0:02:53.8]} 6. Be2 {[%clk 0:02:44.1]} 6... Nf6 {[%clk
0:02:53.8]} 7. O-O {[%clk 0:02:43.6]} 7... O-O {[%clk 0:02:45.4]} 8. Nc3 {[%clk
0:02:43]} 8... d6 {[%clk 0:02:44.5]} 9. b3 {[%clk 0:02:29.3]} 9... Re8 {[%clk
0:02:42.4]} 10. Bb2 {[%clk 0:02:29.3]} 10... a6 {[%clk 0:02:42.2]} 11. Qc2
{[%clk 0:02:26.7]} 11... Bd7 {[%clk 0:02:41.2]} 12. Rfd1 {[%clk 0:02:24.9]}
12... Qc8 {[%clk 0:02:41.2]} 13. Bd3 {[%clk 0:02:20.9]} 13... Bg4 {[%clk
0:02:39.3]} 14. Be2 {[%clk 0:02:17.8]} 14... Bf5 {[%clk 0:02:35]} 15. Bd3 {[%clk
0:02:16.8]} 15... Bg4 {[%clk 0:02:33.7]} 16. Be2 {[%clk 0:02:16.9]} 16... Qf5
{[%clk 0:02:22.5]} 17. Qxf5 {[%clk 0:02:15]} 17... Bxf5 {[%clk 0:02:22]} 18. Nd4
{[%clk 0:02:12.5]} 18... Bd7 {[%clk 0:02:20.7]} 19. Bf3 {[%clk 0:02:07.9]} 19...
Rab8 {[%clk 0:02:20.6]} 20. Nd5 {[%clk 0:02:03.1]} 20... Nxd5 {[%clk 0:02:13.4]}
21. Bxd5 {[%clk 0:02:02.3]} 21... Ne5 {[%clk 0:01:58.9]} 22. h3 {[%clk
0:02:00.4]} 22... Nc6 {[%clk 0:01:57.2]} 23. Rac1 {[%clk 0:01:53.4]} 23... Nxd4
{[%clk 0:01:53.5]} 24. exd4 {[%clk 0:01:51.7]} 24... Ba7 {[%clk 0:01:52.5]} 25.
Re1 {[%clk 0:01:50.6]} 25... c6 {[%clk 0:01:51]} 26. Bf3 {[%clk 0:01:49.4]}
26... Kf8 {[%clk 0:01:48.4]} 27. Kf1 {[%clk 0:01:48.2]} 27... Bf5 {[%clk
0:01:39.6]} 28. Ba3 {[%clk 0:01:33.8]} 28... Rbd8 {[%clk 0:01:36.3]} 29. Rcd1
{[%clk 0:01:32.8]} 29... Bb6 {[%clk 0:01:30]} 30. Rxe8+ {[%clk 0:01:22.7]} 30...
Kxe8 {[%clk 0:01:26.4]} 31. g4 {[%clk 0:01:19.7]} 31... Bg6 {[%clk 0:01:23.4]}
32. Bg2 {[%clk 0:01:15.5]} 32... Kd7 {[%clk 0:01:20.1]} 33. c5 {[%clk 0:01:11]}
33... Bc7 {[%clk 0:01:15.6]} 34. d5 {[%clk 0:01:06.7]} 34... cxd5 {[%clk
0:00:44.3]} 35. Rxd5 {[%clk 0:00:52.7]} 35... Kc8 {[%clk 0:00:20]} 36. cxd6
{[%clk 0:00:50.5]} 36... Bb6 {[%clk 0:00:20.2]} 37. f4 {[%clk 0:00:43.4]} 37...
f6 {[%clk 0:00:19.6]} 38. f5 {[%clk 0:00:42.4]} 38... Bf7 {[%clk 0:00:19.4]} 39.
Rd1 {[%clk 0:00:41]} 39... Kb8 {[%clk 0:00:18.8]} 40. Bb4 {[%clk 0:00:37.3]}
40... a5 {[%clk 0:00:14.3]} 41. Bc3 {[%clk 0:00:34.6]} 41... a4 {[%clk
0:00:14.2]} 42. bxa4 {[%clk 0:00:33]} 42... Bxa2 {[%clk 0:00:13]} 43. a5 {[%clk
0:00:33.1]} 43... Bc5 {[%clk 0:00:12.5]} 44. d7 {[%clk 0:00:31.3]} 44... Kc7
{[%clk 0:00:12.1]} 45. Rd2 {[%clk 0:00:26.5]} 45... Bc4+ {[%clk 0:00:12.5]} 46.
Ke1 {[%clk 0:00:23.3]} 46... Bb5 {[%clk 0:00:12.6]} 47. Kd1 {[%clk 0:00:18.3]}
47... Rxd7 {[%clk 0:00:12.5]} 48. Rxd7+ {[%clk 0:00:17.2]} 48... Bxd7 {[%clk
0:00:12.9]} 49. Kd2 {[%clk 0:00:15.1]} 49... Ba4 {[%clk 0:00:13.4]} 50. Kd3
{[%clk 0:00:12.8]} 50... Bc6 {[%clk 0:00:13.8]} 51. Bxc6 {[%clk 0:00:09.3]}
51... Kxc6 {[%clk 0:00:14]} 52. Kc4 {[%clk 0:00:09.4]} 52... Bf2 {[%clk
0:00:13.9]} 53. Bd2 {[%clk 0:00:07.8]} 53... Bh4 {[%clk 0:00:13.2]} 54. Be3
{[%clk 0:00:07.4]} 54... Be1 {[%clk 0:00:08.7]} 55. Bf4 {[%clk 0:00:07.5]} 55...
Bxa5 {[%clk 0:00:07.5]} 56. Bg3 {[%clk 0:00:07.1]} 56... Bc7 {[%clk 0:00:07.6]}
57. Bf2 {[%clk 0:00:06.6]} 57... Be5 {[%clk 0:00:07.5]} 58. Be3 {[%clk
0:00:06.5]} 58... b5+ {[%clk 0:00:07.6]} 59. Kb4 {[%clk 0:00:06.3]} 59... Bd6+
{[%clk 0:00:08.1]} 60. Kb3 {[%clk 0:00:06.1]} 60... Bc5 {[%clk 0:00:08.6]} 61.
Bd2 {[%clk 0:00:05.7]} 61... Kd5 {[%clk 0:00:08.7]} 62. Be1 {[%clk 0:00:05]}
62... Ke4 {[%clk 0:00:07.2]} 63. Bd2 {[%clk 0:00:05]} 63... Kf3 {[%clk
0:00:07.3]} 64. g5 {[%clk 0:00:04.2]} 64... Kg3 {[%clk 0:00:04.6]} 65. gxf6
{[%clk 0:00:04.4]} 65... gxf6 {[%clk 0:00:05]} 66. Bc3 {[%clk 0:00:04.2]} 66...
Be7 {[%clk 0:00:05.4]} 67. Bd4 {[%clk 0:00:03.5]} 67... Kxh3 {[%clk 0:00:05.4]}
68. Kc3 {[%clk 0:00:02.5]} 68... Kg4 {[%clk 0:00:05.4]} 69. Kb3 {[%clk
0:00:02.7]} 69... Kxf5 {[%clk 0:00:05.8]} 70. Bc3 {[%clk 0:00:02.9]} 70... h5
{[%clk 0:00:06.2]} 71. Bd2 {[%clk 0:00:03.1]} 71... h4 {[%clk 0:00:06.6]} 72.
Be1 {[%clk 0:00:03.3]} 72... Kg4 {[%clk 0:00:06.9]} 73. Bf2 {[%clk 0:00:02.3]}
73... h3 {[%clk 0:00:07.1]} 74. Bb6 {[%clk 0:00:01.6]} 74... h2 {[%clk
0:00:06.4]} 75. Bc7 {[%clk 0:00:01.7]} 75... h1=Q {[%clk 0:00:06.1]} 76. Bb8
{[%clk 0:00:02.1]} 76... Qd5+ {[%clk 0:00:06.4]} 77. Kb2 {[%clk 0:00:02.2]}
77... Qc4 {[%clk 0:00:06.9]} 78. Kb1 {[%clk 0:00:02.3]} 78... b4 {[%clk
0:00:07.4]} 79. Ka1 {[%clk 0:00:02.4]} 79... b3 {[%clk 0:00:08]} 80. Kb1 {[%clk
0:00:02.6]} 80... Qc2+ {[%clk 0:00:08]} 81. Ka1 {[%clk 0:00:03.4]} 81... Qa2#
{[%clk 0:00:08.6]} 0-1

[Event "*** Titled Tuesday Blitz"]
[Site "Chess.com"]
[Date "2021.02.16"]
[Round "3"]
[White "zverr1"]
[Black "ChristopherYoo"]
[Result "1-0"]
[WhiteElo "2481"]
[BlackElo "2885"]
[TimeControl "180+1"]
[EndTime "10:32:53 PST"]
[Termination "zverr1 won by resignation"]

1. d4 {[%clk 0:03:00.9]} 1... Nf6 {[%clk 0:02:46.2]} 2. c4 {[%clk 0:03:00.6]}
2... g6 {[%clk 0:02:46.2]} 3. Nc3 {[%clk 0:03:01.2]} 3... Bg7 {[%clk 0:02:46.1]}
4. e4 {[%clk 0:03:01.3]} 4... d6 {[%clk 0:02:46.5]} 5. h3 {[%clk 0:03:02.2]}
5... O-O {[%clk 0:02:45.5]} 6. Be3 {[%clk 0:03:03.1]} 6... Na6 {[%clk
0:02:43.7]} 7. g4 {[%clk 0:03:03.2]} 7... e5 {[%clk 0:02:42.7]} 8. d5 {[%clk
0:03:03.2]} 8... Nc5 {[%clk 0:02:42.6]} 9. f3 {[%clk 0:03:03.8]} 9... c6 {[%clk
0:02:42.6]} 10. h4 {[%clk 0:03:01.5]} 10... cxd5 {[%clk 0:02:38]} 11. cxd5
{[%clk 0:03:02.4]} 11... Bd7 {[%clk 0:02:37.7]} 12. h5 {[%clk 0:02:58.8]} 12...
Rc8 {[%clk 0:02:11.2]} 13. Qd2 {[%clk 0:02:58.1]} 13... Bxg4 {[%clk 0:01:45.8]}
14. fxg4 {[%clk 0:02:43.6]} 14... Ncxe4 {[%clk 0:01:45]} 15. Nxe4 {[%clk
0:02:44.3]} 15... Nxe4 {[%clk 0:01:45]} 16. Qb4 {[%clk 0:02:45]} 16... f5 {[%clk
0:01:41.4]} 17. hxg6 {[%clk 0:02:32.4]} 17... hxg6 {[%clk 0:01:35.4]} 18. Ne2
{[%clk 0:02:10.3]} 18... a5 {[%clk 0:01:18.9]} 19. Qb6 {[%clk 0:01:56.1]} 19...
f4 {[%clk 0:00:46.3]} 20. Qxd8 {[%clk 0:01:50]} 20... Rcxd8 {[%clk 0:00:46.3]}
21. Bb6 {[%clk 0:01:38.7]} 21... Rc8 {[%clk 0:00:44.5]} 22. Bxa5 {[%clk
0:01:31.2]} 22... f3 {[%clk 0:00:44]} 23. Nc3 {[%clk 0:01:30.6]} 23... f2+
{[%clk 0:00:43.8]} 24. Kd1 {[%clk 0:01:30]} 24... Ng3 {[%clk 0:00:43]} 25. Ne4
{[%clk 0:01:20.1]} 25... Nxe4 {[%clk 0:00:27.6]} 26. Rh3 {[%clk 0:01:20.6]}
26... Rc5 {[%clk 0:00:26]} 27. Bb4 {[%clk 0:01:15.5]} 27... Rxd5+ {[%clk
0:00:26]} 28. Ke2 {[%clk 0:01:14.5]} 28... Rd4 {[%clk 0:00:26.1]} 29. Bc3 {[%clk
0:01:03.9]} 29... Nxc3+ {[%clk 0:00:25.5]} 30. bxc3 {[%clk 0:01:04.8]} 30...
Rxg4 {[%clk 0:00:25.2]} 31. Rd1 {[%clk 0:00:49.3]} 31... Rf6 {[%clk 0:00:24.5]}
32. Rf3 {[%clk 0:00:45.9]} 32... Re4+ {[%clk 0:00:23.5]} 33. Re3 {[%clk
0:00:46.2]} 33... Ra4 {[%clk 0:00:20.8]} 34. Bg2 {[%clk 0:00:34.9]} 34... Rxa2+
{[%clk 0:00:20.4]} 35. Kf1 {[%clk 0:00:35.6]} 35... Rb2 {[%clk 0:00:19.7]} 36.
Red3 {[%clk 0:00:27.6]} 36... Bf8 {[%clk 0:00:19.4]} 37. Bd5+ {[%clk 0:00:24.1]}
37... Kg7 {[%clk 0:00:19.6]} 38. R3d2 {[%clk 0:00:22.2]} 38... Rb5 {[%clk
0:00:11.3]} 39. c4 {[%clk 0:00:19.9]} 39... Rc5 {[%clk 0:00:10.2]} 40. Rb1
{[%clk 0:00:15.6]} 40... b6 {[%clk 0:00:02.9]} 41. Rxb6 {[%clk 0:00:13.9]} 41...
Be7 {[%clk 0:00:02.7]} 42. Rxf2 {[%clk 0:00:13.7]} 42... Rxf2+ {[%clk
0:00:02.3]} 43. Kxf2 {[%clk 0:00:14.6]} 43... Kf6 {[%clk 0:00:02.6]} 44. Rb7
{[%clk 0:00:15.5]} 44... g5 {[%clk 0:00:02.7]} 45. Kf3 {[%clk 0:00:15]} 45...
Ra5 {[%clk 0:00:03]} 46. Rb3 {[%clk 0:00:13.9]} 46... Ra1 {[%clk 0:00:02.8]} 47.
Kg2 {[%clk 0:00:13.4]} 47... Re1 {[%clk 0:00:02.6]} 48. Rf3+ {[%clk 0:00:13.6]}
48... Kg6 {[%clk 0:00:03.1]} 49. Bf7+ {[%clk 0:00:13.4]} 49... Kg7 {[%clk
0:00:03.1]} 50. Bd5 {[%clk 0:00:14.2]} 50... Bf6 {[%clk 0:00:03.4]} 51. Ra3
{[%clk 0:00:13.2]} 51... e4 {[%clk 0:00:03]} 52. Kf2 {[%clk 0:00:12.9]} 52...
Rc1 {[%clk 0:00:02.3]} 53. Ra7+ {[%clk 0:00:12.6]} 53... Kf8 {[%clk 0:00:01.4]}
54. Rf7+ {[%clk 0:00:12.2]} 54... Ke8 {[%clk 0:00:01.9]} 55. Rxf6 {[%clk
0:00:13.1]} 55... Ke7 {[%clk 0:00:02.5]} 56. Re6+ {[%clk 0:00:13.3]} 56... Kd7
{[%clk 0:00:03]} 57. Rxe4 {[%clk 0:00:14.2]} 57... Rc3 {[%clk 0:00:02.9]} 58.
Rg4 {[%clk 0:00:13.8]} 58... Kc7 {[%clk 0:00:03.5]} 59. Rxg5 {[%clk 0:00:14]}
59... Kb6 {[%clk 0:00:04.4]} 60. Rg8 {[%clk 0:00:13.9]} 60... Kc5 {[%clk
0:00:05.3]} 61. Rc8+ {[%clk 0:00:14.5]} 61... Kd4 {[%clk 0:00:05.8]} 62. Ke2
{[%clk 0:00:15.1]} 62... Re3+ {[%clk 0:00:05.6]} 63. Kd2 {[%clk 0:00:15.1]}
63... Ra3 {[%clk 0:00:05.7]} 64. Kc2 {[%clk 0:00:15.5]} 64... Ra2+ {[%clk
0:00:05.7]} 65. Kb3 {[%clk 0:00:15.8]} 65... Ra1 {[%clk 0:00:06.3]} 66. Rc6
{[%clk 0:00:15.6]} 66... Ke5 {[%clk 0:00:05.3]} 67. Kb4 {[%clk 0:00:16.1]} 67...
Rb1+ {[%clk 0:00:05.5]} 68. Ka5 {[%clk 0:00:16.4]} 68... Rb2 {[%clk 0:00:05.7]}
69. Rb6 {[%clk 0:00:15.8]} 69... Rh2 {[%clk 0:00:04.6]} 70. Kb5 {[%clk
0:00:15.9]} 70... Rh8 {[%clk 0:00:05.1]} 71. Rb7 {[%clk 0:00:16.1]} 71... Rc8
{[%clk 0:00:04.8]} 72. Re7+ {[%clk 0:00:15.7]} 72... Kd4 {[%clk 0:00:05]} 73.
Re4+ {[%clk 0:00:16]} 73... Kd3 {[%clk 0:00:04.7]} 74. Rh4 {[%clk 0:00:16.5]}
74... Rd8 {[%clk 0:00:01.8]} 75. Kc6 {[%clk 0:00:16.7]} 75... Kc3 {[%clk
0:00:02.2]} 76. Rh6 {[%clk 0:00:16.4]} 76... Kd4 {[%clk 0:00:02.1]} 77. Rxd6
{[%clk 0:00:16.5]} 77... Rc8+ {[%clk 0:00:02.8]} 78. Kd7 {[%clk 0:00:16.8]}
78... Rh8 {[%clk 0:00:02.9]} 79. Re6 {[%clk 0:00:14.7]} 79... Rh7+ {[%clk
0:00:02.7]} 80. Kc6 {[%clk 0:00:14.9]} 80... Rh8 {[%clk 0:00:03]} 81. Re4+
{[%clk 0:00:15]} 81... Kc3 {[%clk 0:00:03.4]} 82. Rg4 {[%clk 0:00:15.6]} 82...
Rc8+ {[%clk 0:00:02.8]} 83. Kd7 {[%clk 0:00:16]} 83... Rc5 {[%clk 0:00:02.9]}
84. Kd6 {[%clk 0:00:16.2]} 84... Kb4 {[%clk 0:00:03.5]} 85. Rg1 {[%clk
0:00:15.6]} 85... Rc8 {[%clk 0:00:03.8]} 86. Rb1+ {[%clk 0:00:15.9]} 86... Kc3
{[%clk 0:00:04.1]} 87. c5 {[%clk 0:00:15.9]} 87... Rd8+ {[%clk 0:00:04.6]} 88.
Kc6 {[%clk 0:00:16.3]} 88... Rc8+ {[%clk 0:00:05]} 89. Kd6 {[%clk 0:00:16.5]}
89... Rd8+ {[%clk 0:00:05.4]} 90. Ke5 {[%clk 0:00:17.1]} 90... Re8+ {[%clk
0:00:05.8]} 91. Be6 {[%clk 0:00:17.6]} 91... Re7 {[%clk 0:00:02.4]} 92. c6
{[%clk 0:00:17.6]} 1-0

[Event "*** Titled Tuesday Blitz"]
[Site "Chess.com"]
[Date "2021.02.16"]
[Round "3"]
[White "Emeraldddd"]
[Black "igorcadilhac"]
[Result "0-1"]
[WhiteElo "2516"]
[BlackElo "2342"]
[TimeControl "180+1"]
[EndTime "10:32:53 PST"]
[Termination "igorcadilhac won by resignation"]

1. e4 {[%clk 0:03:00.9]} 1... e5 {[%clk 0:03:00.3]} 2. Nf3 {[%clk 0:02:56.9]}
2... Nf6 {[%clk 0:03:00.8]} 3. Nc3 {[%clk 0:02:47.5]} 3... Bb4 {[%clk
0:02:59.6]} 4. Bc4 {[%clk 0:02:45.5]} 4... O-O {[%clk 0:02:55]} 5. O-O {[%clk
0:02:45.5]} 5... Nc6 {[%clk 0:02:50]} 6. d3 {[%clk 0:02:45.8]} 6... Bxc3 {[%clk
0:02:40]} 7. bxc3 {[%clk 0:02:45.7]} 7... d5 {[%clk 0:02:40.7]} 8. exd5 {[%clk
0:02:46.6]} 8... Nxd5 {[%clk 0:02:40.9]} 9. Re1 {[%clk 0:02:47.1]} 9... Bg4
{[%clk 0:02:36.9]} 10. Bb2 {[%clk 0:02:33.5]} 10... Nb6 {[%clk 0:02:22.4]} 11.
Bb5 {[%clk 0:02:32.1]} 11... Qf6 {[%clk 0:02:21.4]} 12. h3 {[%clk 0:02:24.9]}
12... Bxf3 {[%clk 0:01:54.9]} 13. Qxf3 {[%clk 0:02:25.8]} 13... Qxf3 {[%clk
0:01:55.3]} 14. gxf3 {[%clk 0:02:26.7]} 14... f6 {[%clk 0:01:36.1]} 15. d4
{[%clk 0:02:11.5]} 15... exd4 {[%clk 0:01:32.9]} 16. cxd4 {[%clk 0:02:12.4]}
16... a6 {[%clk 0:01:30.8]} 17. Bxc6 {[%clk 0:02:04]} 17... bxc6 {[%clk
0:01:31.1]} 18. Re7 {[%clk 0:02:04.1]} 18... Nd5 {[%clk 0:00:48.5]} 19. Re6
{[%clk 0:02:03.3]} 19... Rfe8 {[%clk 0:00:40.2]} 20. Rxc6 {[%clk 0:02:02.8]}
20... Re2 {[%clk 0:00:40.5]} 21. Rd1 {[%clk 0:01:09.2]} 21... Rae8 {[%clk
0:00:40.2]} 22. Kf1 {[%clk 0:00:20.7]} 22... h5 {[%clk 0:00:36.6]} 23. Bc1
{[%clk 0:00:20.1]} 23... R2e6 {[%clk 0:00:28.3]} 24. Rxe6 {[%clk 0:00:19.6]}
24... Rxe6 {[%clk 0:00:29.2]} 25. c4 {[%clk 0:00:20.2]} 25... Nb4 {[%clk
0:00:20.6]} 26. a3 {[%clk 0:00:20.1]} 26... Nc6 {[%clk 0:00:19.1]} 27. d5 {[%clk
0:00:20.5]} 27... Rd6 {[%clk 0:00:19.6]} 28. Bf4 {[%clk 0:00:20.7]} 28... Rd7
{[%clk 0:00:19.7]} 29. Rd2 {[%clk 0:00:20.5]} 29... Na5 {[%clk 0:00:19.2]} 30.
Rc2 {[%clk 0:00:19.9]} 30... Nb3 {[%clk 0:00:19.3]} 31. Rc3 {[%clk 0:00:19]}
31... Nc5 {[%clk 0:00:18.9]} 32. Be3 {[%clk 0:00:18.9]} 32... Nb7 {[%clk
0:00:14.9]} 33. Ke2 {[%clk 0:00:18.3]} 33... Nd6 {[%clk 0:00:14.8]} 34. c5
{[%clk 0:00:17.9]} 34... Nb5 {[%clk 0:00:13.7]} 35. Rd3 {[%clk 0:00:18.3]} 35...
Kf7 {[%clk 0:00:13.9]} 36. a4 {[%clk 0:00:18]} 36... Na7 {[%clk 0:00:11.4]} 37.
c6 {[%clk 0:00:18.5]} 37... Re7 {[%clk 0:00:11.5]} 38. Kd2 {[%clk 0:00:17.7]}
38... Nc8 {[%clk 0:00:11.7]} 39. Bc5 {[%clk 0:00:17.6]} 39... Re5 {[%clk
0:00:11.2]} 40. f4 {[%clk 0:00:17.4]} 40... Re4 {[%clk 0:00:10.9]} 41. d6 {[%clk
0:00:16.8]} 41... cxd6 {[%clk 0:00:11.2]} 42. Bxd6 {[%clk 0:00:17.7]} 42... Rc4
{[%clk 0:00:10.5]} 43. c7 {[%clk 0:00:17]} 43... Rc6 {[%clk 0:00:10.6]} 44. Bb4
{[%clk 0:00:14.7]} 44... Rxc7 {[%clk 0:00:10.8]} 45. Ba5 {[%clk 0:00:15.4]}
45... Rb7 {[%clk 0:00:09.5]} 46. Ke3 {[%clk 0:00:14.2]} 46... Ne7 {[%clk
0:00:09.7]} 47. Bc3 {[%clk 0:00:11.6]} 47... Nf5+ {[%clk 0:00:09.3]} 48. Ke4
{[%clk 0:00:11.5]} 48... g6 {[%clk 0:00:09.8]} 49. a5 {[%clk 0:00:11.9]} 49...
Re7+ {[%clk 0:00:09.3]} 50. Kf3 {[%clk 0:00:11.9]} 50... Nh4+ {[%clk 0:00:08.5]}
51. Kg3 {[%clk 0:00:12.4]} 51... Nf5+ {[%clk 0:00:09.1]} 52. Kg2 {[%clk
0:00:13]} 52... Nh4+ {[%clk 0:00:09.5]} 53. Kh2 {[%clk 0:00:13.3]} 53... Nf5
{[%clk 0:00:10.1]} 54. Bb2 {[%clk 0:00:12.2]} 54... Rb7 {[%clk 0:00:10.1]} 55.
Ba1 {[%clk 0:00:11.7]} 55... Rb5 {[%clk 0:00:10.1]} 56. Bc3 {[%clk 0:00:10.6]}
56... Ke6 {[%clk 0:00:09.1]} 57. Rd8 {[%clk 0:00:10]} 57... Nd6 {[%clk
0:00:09.1]} 58. Bxf6 {[%clk 0:00:09.3]} 58... Nf7 {[%clk 0:00:07.4]} 59. Bg5
{[%clk 0:00:04.6]} 59... Nxd8 {[%clk 0:00:07.2]} 60. Bxd8 {[%clk 0:00:05.5]}
60... Kf5 {[%clk 0:00:07.7]} 61. Kg3 {[%clk 0:00:05.9]} 61... Rb3+ {[%clk
0:00:07.5]} 62. f3 {[%clk 0:00:06.3]} 62... Ra3 {[%clk 0:00:05.9]} 63. Bb6
{[%clk 0:00:06.4]} 63... Ra4 {[%clk 0:00:06]} 64. Bc7 {[%clk 0:00:05.8]} 64...
Ra1 {[%clk 0:00:06.1]} 65. Bb6 {[%clk 0:00:03.9]} 65... Ra2 {[%clk 0:00:05.5]}
66. Bc7 {[%clk 0:00:04]} 66... Ra4 {[%clk 0:00:05]} 67. Bb6 {[%clk 0:00:04.4]}
67... Rxf4 {[%clk 0:00:04.8]} 68. Bc7 {[%clk 0:00:04.8]} 68... Ra4 {[%clk
0:00:05]} 69. Bb6 {[%clk 0:00:05.4]} 69... h4+ {[%clk 0:00:05.3]} 70. Kg2 {[%clk
0:00:05.8]} 70... Ra2+ {[%clk 0:00:05.7]} 71. Bf2 {[%clk 0:00:05.8]} 71... Kf4
{[%clk 0:00:05.8]} 72. Kg1 {[%clk 0:00:06.7]} 72... g5 {[%clk 0:00:05.1]} 73.
Be1 {[%clk 0:00:07.4]} 73... Kxf3 {[%clk 0:00:05.3]} 74. Bb4 {[%clk 0:00:06.5]}
74... Ra1+ {[%clk 0:00:05.1]} 75. Kh2 {[%clk 0:00:06.7]} 75... Ra2+ {[%clk
0:00:05.3]} 76. Kg1 {[%clk 0:00:07.1]} 76... Ra4 {[%clk 0:00:05.8]} 77. Bd6
{[%clk 0:00:07.2]} 77... Rxa5 {[%clk 0:00:05.4]} 78. Be7 {[%clk 0:00:08.1]}
78... Ra1+ {[%clk 0:00:05.5]} 79. Kh2 {[%clk 0:00:08.2]} 79... Ra2+ {[%clk
0:00:06.2]} 80. Kg1 {[%clk 0:00:08.4]} 80... Rg2+ {[%clk 0:00:06.4]} 81. Kh1
{[%clk 0:00:08.6]} 81... Re2 {[%clk 0:00:06.8]} 82. Bxg5 {[%clk 0:00:08.8]}
82... Kg3 {[%clk 0:00:06.7]} 0-1